Cogmind - Beta 14 @@@ ROGUE MODE // 2024.12.16 @ 17:25:36 Player: N.W.L Result: Self-destructed Performance ------------- Evolutions (1) 500 Regions Visited (3) 600 Robots Destroyed (1) 5 Value Destroyed (10) 10 Prototype IDs (0) 0 Alien Tech Used (0) 0 Bonus (200) 200 TOTAL SCORE: 1315 Bonus ------- Pacifist 200 Cogmind --------- Core Integrity 320/400 Matter 231/300 Energy 99/100 System Corruption 0% Temperature Cool (0) Movement Core (50) Location -9/Materials Parts ------- > --- POWER (1) -------- (None) > --- PROPULSION (2) --- (None) > --- UTILITY (4) ------ Armor Integrity Analyzer > --- WEAPON (2) ------- (None) > --- INVENTORY (5) ---- Improved Datajack Peak State ------------ > --- POWER ------------ (None) > --- PROPULSION ------- (None) > --- UTILITY ---------- Armor Integrity Analyzer > --- WEAPON ----------- Improved Datajack Welding Torch > --- INVENTORY -------- Small Laser Beam Cannon [Rating: 8] Favorites ----------- Power None Propulsion Flight Unit Flight Unit Flight Unit Utility Armor Integrity Analyzer Processor Armor Integrity Analyzer Weapon Welding Torch Energy Gun Small Laser Energy Cannon Beam Cannon Special Weapon Welding Torch Special Melee Weapon Improved Datajack Build | -11 -10 -10 -9 ------- Run | Yrd Mat Min Mat Slots Evolved 2 | . . . 2 Power . | . . . . Propulsion . | . . . . Utility 2 | . . . 2 Weapon . | . . . . Parts Attached 7 | . 1 2 4 Power . | . . . . Engine . | . . . . Core . | . . . . Reactor . | . . . . Propulsion 1 | . . . 1 Treads . | . . . . Leg . | . . . . Wheel . | . . . . Hover . | . . . . Flight 1 | . . . 1 Utility 1 | . . 1 . Device . | . . . . Storage . | . . . . Processor 1 | . . 1 . Hackware . | . . . . Protection . | . . . . Artifact . | . . . . Weapon 5 | . 1 1 3 Energy Gun 1 | . . . 1 Energy Cannon 1 | . . . 1 Ballistic Gun . | . . . . Ballistic Cannon . | . . . . Launcher . | . . . . Special Weapon 2 | . 1 1 . Impact Weapon . | . . . . Slashing Weapon . | . . . . Piercing Weapon . | . . . . Special Melee Weapon 1 | . . . 1 Unidentified Prototypes . | . . . . Parts Lost 5 | . . 1 4 Power . | . . . . Propulsion 1 | . . . 1 Utility . | . . . . Weapon 4 | . . 1 3 Highest Loss Streak 2 | . . 1 2 To Critical Strikes 1 | . . . 1 Average Slot Usage (%) 18 | . 4 13 33 Flight 1 | . . . 5 Processor 9 | . . 9 11 Energy Gun 1 | . . . 6 Energy Cannon 1 | . . . 5 Special Weapon 3 | . 4 4 2 Peak Build Rating 8 | . 1 5 8 Average Rating 3 | . . 2 6 On Entrance 1 | . . 1 5 Naked Turns 117 | . 29 88 . Heaviest Build 4 | . 1 1 4 Greatest Support 4 | 3 3 3 4 Greatest Overweight (x) 1 | . . . 1 Average Overweight (x) . | . . . . Largest Inventory Capacity 5 | 5 5 5 5 Average Capacity 5 | 5 5 5 5 Most Carried 2 | . . 2 2 Average Carried . | . . . 1 Final Capacity 5 | 5 5 5 5 Final Carried 2 | . . 2 1 Class Distribution -------------------- 100% | Mutant Dominant Class ---------------- Mutant | -10/Materials Mutant | -10/Mines Mutant | -9/Materials Resources | -11 -10 -10 -9 ----------- Run | Yrd Mat Min Mat Matter Collected 154 | . . 144 10 Remotely . | . . . . Salvage Created 10 | . . . 10 Parts 2 | . . . 2 Haulers Intercepted . | . . . . Recyclers Shooed . | . . . . Parts Field Recycled . | . . . . Retrieved Matter . | . . . . Parts Self-Destructed . | . . . . Prevented . | . . . . Kills | -11 -10 -10 -9 ------- Run | Yrd Mat Min Mat Combat Hostiles Destroyed 1 | . . . 1 Cannons 1 | . . . 1 Classes Destroyed 1 | . . . 1 Swarmer 1 | . . . 1 Best Kill Streak 1 | . . . 1 Combat Bots Only 1 | . . . 1 Max Kills in Single Turn 1 | . . . 1 Gunslinging . | . . . . Exploded . | . . . . Melee . | . . . . Uniques/NPCs Destroyed . | . . . . Combat | -11 -10 -10 -9 -------- Run | Yrd Mat Min Mat Hostile Shots Fired 56 | . . 19 37 Missed 21 | . . 6 15 Damage Taken 536 | . . 291 245 Core 329 | . . 249 80 Absorbed by Shields . | . . . . Core Remaining (%) 50 | 100 . . . Volleys Fired 12 | . . . 12 Largest 2 | . . . 2 Hottest 100 | . . . 100 Shots Fired 15 | . . . 15 Gun 3 | . . . 3 Cannon 12 | . . . 12 Launcher . | . . . . Special . | . . . . Kinetic . | . . . . Thermal 15 | . . . 15 Explosive . | . . . . Electromagnetic . | . . . . Robot Hit Streak 4 | . . . 4 Robot Miss Streak 5 | . . . 5 Penetration Max . | . . . . Secondary Targets . | . . . . Shots Hit Robots 5 | . . . 5 Core Hits 2 | . . . 2 Critical Kills . | . . . . Critical Parts Destroyed . | . . . . Critical Strikes . | . . . . Melee Attacks . | . . . . Impact . | . . . . Slashing . | . . . . Piercing . | . . . . Sneak Attacks . | . . . . Combat Hostiles . | . . . . Follow-up Attacks . | . . . . Damage Inflicted 110 | . . 17 93 Guns 34 | . . . 34 Cannons 51 | . . . 51 Explosions . | . . . . Melee . | . . . . Ramming 25 | . . 17 8 Kinetic . | . . . . Thermal 85 | . . . 85 Explosive . | . . . . Electromagnetic . | . . . . Impact . | . . . . Slashing . | . . . . Piercing . | . . . . Highest Corruption . | . . . . Average Corruption . | . . . . Corruption Purged . | . . . . Corruption Blocked . | . . . . Overload Shots . | . . . . Overflow Damage . | . . . . Projectiles . | . . . . Explosions . | . . . . Melee . | . . . . Knockbacks . | . . . . Impact . | . . . . Kinetic . | . . . . Secondary . | . . . . Self-Inflicted Damage 11 | . . 7 4 Shots . | . . . . Rammed 5 | . . 4 1 Targets Rammed 5 | . . 4 1 Kicked . | . . . . Crushed . | . . . . Highest Temperature 54 | . . . 54 Average Temperature 17 | . . . 17 Received Heat Transfer 9 | . . . 9 Siege Activations . | . . . . Robots Corrupted . | . . . . Combat Hostiles . | . . . . Parts Fried . | . . . . Impact Corruptions . | . . . . Robots Melted . | . . . . Combat Hostiles . | . . . . Parts Melted . | . . . . Heat Transferred 186 | . . . 186 Parts Sabotaged . | . . . . Parts Stolen . | . . . . Parts Stripped . | . . . . Power Chain Reactions . | . . . . Alert | -11 -10 -10 -9 ------- Run | Yrd Mat Min Mat Peak Influence 100 | . . 45 100 Initial 17 | . . . 17 Average 33 | . . 32 44 Maximum Alert Level . | . . . . Low Security (%) 100 | 100 100 100 100 Level 1 . | . . . . Level 2 . | . . . . Level 3 . | . . . . Level 4 . | . . . . Level 5 . | . . . . High Security . | . . . . Max Security . | . . . . Squads Dispatched 2 | . . . 2 Investigation 1 | . . . 1 Extermination . | . . . . Reinforcement 1 | . . . 1 Assault . | . . . . Garrison . | . . . . Intercept . | . . . . Searches Triggered . | . . . . Construction Impeded . | . . . . Haulers Reinforced . | . . . . Active Scanning Responses . | . . . . Cargo Convoy Interrupts . | . . . . Stealth | -11 -10 -10 -9 --------- Run | Yrd Mat Min Mat Distress Signals 1 | . . . 1 Communications Jammed . | . . . . Distress Signals . | . . . . Times Spotted 19 | . . 9 10 Peak Tracking Total 7 | . . 7 6 Tactical Retreats 4 | . . 3 1 Traps | -11 -10 -10 -9 ------- Run | Yrd Mat Min Mat Traps Triggered 2 | . 1 . 1 Indirectly . | . . . . Trap Hack Attempts . | . . . . Triggered . | . . . . Disarmed . | . . . . Reprogrammed . | . . . . Reused . | . . . . Traps Extracted . | . . . . Installed . | . . . . Triggered . | . . . . Machines | -11 -10 -10 -9 ---------- Run | Yrd Mat Min Mat Machines Disabled . | . . . . Max in Single Turn . | . . . . Machines Repaired . | . . . . Machines Dismantled . | . . . . Machines Sabotaged . | . . . . Overloaded Fab Kills . | . . . . Hacking | -11 -10 -10 -9 --------- Run | Yrd Mat Min Mat Machines Accessed 2 | . . . 2 Terminals 2 | . . . 2 Fabricators . | . . . . Repair Stations . | . . . . Recycling Units . | . . . . Scanalyzers . | . . . . Garrison Access . | . . . . Total Hacks 5 | . . . 5 Successful 1 | . . . 1 Failed 4 | . . . 4 Catastrophic . | . . . . Database Lockouts . | . . . . Manual 1 | . . . 1 Terminals 5 | . . . 5 Fabricators . | . . . . Repair Stations . | . . . . Recycling Units . | . . . . Scanalyzers . | . . . . Garrison Access . | . . . . Terminal Hacks 1 | . . . 1 Branch Access Points 1 | . . . 1 Fabricator Hacks . | . . . . Repair Station Hacks . | . . . . Recycling Unit Hacks . | . . . . Scanalyzer . | . . . . Garrison Access Hacks . | . . . . Unauthorized Hacks . | . . . . Terminals . | . . . . Fabricators . | . . . . Repair Stations . | . . . . Recycling Units . | . . . . Scanalyzers . | . . . . Garrison Access . | . . . . Data Cores Recovered . | . . . . Used . | . . . . Hacking Detections 1 | . . . 1 Full Trace Events 1 | . . . 1 Feedback Events . | . . . . Feedback Blocked . | . . . . Robot Schematics Acquired . | . . . . Robots Built . | . . . . Authchips . | . . . . Time . | . . . . Total Robot Build Rating . | . . . . Part Schematics Acquired . | . . . . Parts Built . | . . . . Authchips . | . . . . Time . | . . . . Total Part Build Rating . | . . . . Parts Repaired . | . . . . Time . | . . . . Parts Recycled . | . . . . Recycled Matter . | . . . . Retrieved Matter . | . . . . Retrieved Components . | . . . . Parts Scanalyzed . | . . . . Part Schematics Acquired . | . . . . Parts Damaged . | . . . . Bothacking | -11 -10 -10 -9 ------------ Run | Yrd Mat Min Mat Used RIF Installer . | . . . . Robots Hacked . | . . . . Non-combat . | . . . . Combat . | . . . . Robot Hacks Applied . | . . . . Relay Couplers Released . | . . . . Fabnet Peak Effective % . | . . . . Robots Rewired . | . . . . Allies Hacked . | . . . . Hacks Repelled . | . . . . Allies | -11 -10 -10 -9 -------- Run | Yrd Mat Min Mat Total Allies . | . . . . Largest Group . | . . . . Highest-Rated Group . | . . . . Highest-Rated Ally . | . . . . Total Orders . | . . . . Ally Attacks . | . . . . Total Damage . | . . . . Kills . | . . . . Allies Corrupted . | . . . . Allies Melted . | . . . . Intel | -11 -10 -10 -9 ------- Run | Yrd Mat Min Mat Robot Analysis Total . | . . . . Derelict Logs Recovered 1 | . . 1 . Drone Launches . | . . . . Drone Recoveries . | . . . . Exploration | -11 -10 -10 -9 ------------- Run | Yrd Mat Min Mat Turns Passed 534 | 9 32 338 155 Spaces Moved 692 | 18 60 378 236 Core 555 | 18 60 378 99 Treads . | . . . . Legs . | . . . . Wheels . | . . . . Hover . | . . . . Flight 137 | . . . 137 Fastest Speed 40 | 50 50 50 40 Average Speed 48 | 50 50 50 44 Slowest Speed 100 | 50 50 50 100 Overloaded Moves . | . . . . Propulsion Burnouts . | . . . . Robots Hopped . | . . . . Cave-ins Triggered . | . . . . Exploration Rate (%) 29 | 4 15 69 28 Regions Visited 3 Branch Regions 1 Pre-discovered Areas . | . . . . Known Exits Taken . | . . . . Unknown Exits Taken 3 | 1 1 1 . Scrap Searched 1 | . . 1 . Spaces Dug . | . . . . Terrain Destroyed . | . . . . Melee . | . . . . Projectile . | . . . . AOE . | . . . . Terrain Rammed . | . . . . Walls Destroyed . | . . . . Machines Disabled . | . . . . Actions | -11 -10 -10 -9 --------- Run | Yrd Mat Min Mat Total 871 | 17 60 525 269 Wait 156 | . . 140 16 Move 689 | 17 59 377 236 Hop . | . . . . Pick Up 2 | . . 2 . Fast Attach 5 | . 1 2 2 Attach 1 | . . . 1 Detach . | . . . . Swap 1 | . . . 1 Drop . | . . . . Fire 12 | . . . 12 Melee . | . . . . Ram 5 | . . 4 1 Kick . | . . . . Crush . | . . . . Escape Stasis . | . . . . Rewire . | . . . . Trap . | . . . . Miscellaneous . | . . . . Route ------- -11/Scrapyard -10/Materials -10/Mines -9/Materials (discovered 3 exits: Min x2 / Sto) History --------- Turn | Location | Event 4 | -11/Scrapyard | Discovered new exit (range 12) 10 | -11/Scrapyard | Entered Materials 30 | -10/Materials | Discovered new exit (range 15) 42 | -10/Materials | Entered Mines 46 | -10/Mines | Assembled infested the area 51 | -10/Mines | Assisted by a Guerilla fighting off Assembled 52 | -10/Mines | Met a Derelict bent on vengeance 83 | -10/Mines | Core integrity fell below 50% 90 | -10/Mines | Core integrity fell below 20% 315 | -10/Mines | Build established: Mutant 374 | -10/Mines | Discovered new exit (range 14) 380 | -10/Mines | Entered Materials 380 | -9/Materials | Evolved 2 slots: Utility x2 507 | -9/Materials | Identified exit to Mines 507 | -9/Materials | Identified exit to Storage 535 | -9/Materials | Self-destructed Last Messages --------------- >>Access(Branch) Found 3 branch access points: (88,12) Mines (9,10) Mines (24,21) Storage Map updated. 00509_ O-16 Technician uses terminal to summon reinforcements. 00509_ ALERT: Hostiles spotted, dispatching reinforcements to Terminal M012. 00509_ O-16 Technician locks terminal. 00515_ Triggered EMP Trap. 00515_ A bubble of electromagnetic force engulfs the area. 00515_ EMP Trap short circuited. 00515_ A bubble of electromagnetic force engulfs the area. 00515_ EMP Trap short circuited. 00515_ A bubble of electromagnetic force engulfs the area. 00515_ EMP Trap short circuited. 00515_ A bubble of electromagnetic force engulfs the area. 00515_ Flight Unit destroyed. 00518_ Slammed into K-01 Serf. 00525_ Sml. Laser destroyed. Map ----- +----------------------------------------------------+ | ????????????????????????????????? #????????????? | | ????????????????????????????????? #????????????? | | ????????????????????????????????# #????????????? | | ????????????????????????????????# #????????????? | | ????????????????????????????????# #????????????? | | ????????????????????????????????# +????????????? | | ????????????????????????????????# #????????????? | | ??????????????????####??????????# #????????????? | | ?????????????????# #??????????# #????????????? | | ?????????????????#" #?########## #????????????? | | ?????????????????#T #?# # #????????????? | | ?????????????????#" #?# """ # #????????????? | | ?????????????????# #?# """ + +????????????? | | ???########+###??? !??# """ # #????????????? | | ???# #??? ??# # #????????????? | | ???# #####+#### !!! # #????????????? | | ???# / !!! # #????????????? | | ???+ #### !! # #????????????? | | ?????#### #??# # #????????????? | | ########### #??###/###### #????????????? | | # # #????# #????# #????????????? | | # # #????# #????# #????????????? | | # # "T" #????# #????# #????????????? | | # # """ #????# #????# #????????????? | | #####+##+## ###### #????# #????????????? | | + @ #????# #????????????? | | # #####" "#########+#????# #????????????? | | ??# #???#"R"#?????? ???# #???????###### | | ????# #????"""#????# #??# #?##?#??# | | ????# #?????###????# #?## ### #??# | | ????# #????????????# ! #?# ### #### "" | | ????# #????????????# #?# "" # """ | | ????# #????????????# #?# T / """ | | ????# #????????????########?# # """ | | ????# #?????????????????????# ###+#### "" | | ????# #?????????????????????####### ??# | | #####+## #???????????????????????????# ??####+# | | # #???????????????????????????# ????# # | | """ # #???????????????????????????# #???# # | | """ # ##########+######???????????# """ #???# # | | """ # [[ ???????????# """ #???# # | | + [[ #??????????# """ #???# # | | """ # T ????????????# """ #???#*# | | """ ### "??????????# """ #???# # | | """ #?# T??????????# #???# # | | #?# "??????????# #???# # | | ##########+## "?????????##+######### # | | ???# # [[[ ?????###### | | ???# T #? """ [[[ ?????# *# | | ???# [ #? """ [[[ ??????# !+ """ | +----------------------------------------------------+ Best States ------------- Heat Dissipation 28 Energy Generation 5 Energy Capacity 100 Matter Stores 236 Matter Capacity 300 Sight Range 16 Terrain Scan Density 10 Evasion (%) 62 Armor Integrity Analysis 30 Item Schematics ----------------- None Robot Schematics ------------------ None Fabricated ------------ Nothing Alien Tech Used ----------------- None Achievements -------------- None Challenges ------------ None Game ------ Seed BoreLobotomyCutter Manual? 0 Play Time 00:07:14 Cumulative 419.4 hours Start 2024.12.16 @ 17:20:23 End 2024.12.16 @ 17:25:36 Sessions 1 Manual Loads 0 Difficulty Rogue Special Mode None Game No. 193 Rogue 193 Adventurer 0 Explorer 0 Win Type - Total 15 Types 9/1/5/0/0/0/0/0/0 Lore% 87 Gallery% 90 Achievement% 76 Wizard Run 0 Options --------- Layout 0 ASCII 0 Keyboard 1 Movement Numpad Keybinds 0 Fullscreen 2 Font 12/Smallcaps Map View 83x54 Zoom Use 0% Tactical HUD 1 Map Filters NONE Filters NONE Steam 1 RUN: 002de612-6507-4a77-9d19-85cc84b7bde4